fUSD/lending_fUSD_20250213
["ID","MTS","AMOUNT","RATE_DAILY","PERIOD"]
[352934372,1739442652483,-500.0,0.0001533,2]
[352934373,1739442652494,-1136.48,0.0001533,2]
[352934374,1739442652505,-500.0,0.0001533,2]
[352934375,1739442652515,-1037.95,0.0001533,2]
[352934376,1739442652527,-500.0,0.0001533,2]
[352934377,1739442652538,-500.0,0.0001533,2]
[352934378,1739442652550,-500.0,0.0001533,2]
[352934379,1739442652560,-854.57,0.0001533,2]
[352934380,1739442652571,-500.0,0.0001533,2]
[352934381,1739442652581,-500.0,0.0001533,2]
[352934382,1739442652591,-500.0,0.0001533,2]
[352934383,1739442652608,-500.0,0.0001533,2]
[352934384,1739442652618,-500.0,0.0001533,2]
[352934385,1739442652628,-500.0,0.0001533,2]
[352934386,1739442652638,-500.0,0.0001533,2]
[352934387,1739442652648,-500.0,0.0001533,2]
[352934388,1739442652660,-500.0,0.0001533,2]
[352934389,1739442652671,-742.21,0.0001533,2]
[352934390,1739442652684,-500.0,0.0001533,2]
[352934391,1739442652695,-500.0,0.0001533,2]
[352934392,1739442652704,-500.0,0.0001533,2]
[352934393,1739442652715,-632.78,0.0001533,2]
[352934394,1739442652726,-500.0,0.0001533,2]
[352934395,1739442652737,-500.0,0.0001533,2]
[352934396,1739442652747,-467.28939658,0.0001533,2]
[352934397,1739442652758,-500.0,0.0001533,2]
[352934398,1739442652767,-500.0,0.0001533,2]
[352934399,1739442652777,-500.0,0.0001533,2]
[352934400,1739442652787,-500.0,0.0001533,2]
[352934401,1739442652797,-1132.86,0.0001533,2]
[352934402,1739442652810,-232.59546711,0.0001533,2]
[352934403,1739442652820,-151.0,0.0001533,2]
[352934404,1739442652832,-500.0,0.0001533,2]
[352934405,1739442652842,-500.0,0.0001533,2]
[352934406,1739442652851,-1070.33,0.0001533,2]
[352934407,1739442652861,-150.0,0.0001533,2]
[352934408,1739442652870,-150.0,0.0001533,2]
[352934409,1739442652879,-500.0,0.0001533,2]
[352934410,1739442652888,-500.0,0.0001533,2]
[352934411,1739442652898,-524.29046102,0.0001533,2]
[352934412,1739442652907,-1121.53,0.0001533,2]
[352934413,1739442652916,-151.0,0.0001533,2]
[352934414,1739442652926,-500.0,0.0001533,2]
[352934415,1739442652935,-500.0,0.0001533,2]
[352934416,1739442652944,-1103.5,0.0001533,2]
[352934417,1739442652954,-780.71,0.0001533,2]
[352934418,1739442652964,-500.0,0.0001533,2]
[352934419,1739442652974,-1005.76,0.0001533,2]
[352934420,1739442652983,-500.0,0.0001533,2]
[352934421,1739442652992,-500.0,0.0001533,2]
[352934422,1739442653002,-537.06,0.0001533,2]
[352934423,1739442653011,-500.0,0.0001533,2]
[352934424,1739442653021,-2291.71,0.0001533,2]
[352934425,1739442653030,-1394.46,0.0001533,2]
[352934426,1739442653040,-500.0,0.0001533,2]
[352934427,1739442653050,-500.0,0.0001533,2]
[352934428,1739442653059,-621.09,0.0001533,2]
[352934429,1739442653069,-1171.06,0.0001533,2]
[352934430,1739442653078,-500.0,0.0001533,2]
[352934431,1739442653089,-500.0,0.0001533,2]
[352934432,1739442653100,-1474.78,0.0001533,2]
[352934433,1739442653110,-219.282152,0.0001533,2]
[352934434,1739442653121,-500.0,0.0001533,2]
[352934435,1739442653130,-2313.57,0.0001533,2]
[352934436,1739442653139,-500.0,0.0001533,2]
[352934437,1739442653149,-726.04,0.0001533,2]
[352934438,1739442653159,-1142.07,0.0001533,2]
[352934439,1739442653169,-500.0,0.0001533,2]
[352934440,1739442653179,-544.00190415,0.0001533,2]
[352934441,1739442653188,-500.0,0.0001533,2]
[352934442,1739442653197,-500.0,0.0001533,2]
[352934443,1739442653206,-506.05,0.0001533,2]
[352934444,1739442653215,-1368.63,0.0001533,2]
[352934445,1739442653224,-1991.57,0.0001533,2]
[352934446,1739442653234,-974.88,0.0001533,2]
[352934447,1739442653243,-967.15,0.0001533,2]
[352934448,1739442653252,-500.0,0.0001533,2]
[352934449,1739442653261,-1876.33,0.0001533,2]
[352934450,1739442653270,-500.0,0.0001533,2]
[352934451,1739442653279,-2022.91,0.0001533,2]
[352934452,1739442653288,-500.0,0.0001533,2]
[352934453,1739442653298,-500.0,0.0001533,2]
[352934454,1739442653308,-500.0,0.0001533,2]
[352934455,1739442653317,-1881.15,0.0001533,2]
[352934456,1739442653326,-500.0,0.0001533,2]
[352934457,1739442653335,-937.2,0.0001533,2]
[352934458,1739442653344,-1412.28,0.0001533,2]
[352934459,1739442653353,-500.0,0.0001533,2]
[352934460,1739442653362,-689.9,0.0001533,2]
[352934461,1739442653372,-1088.63,0.0001533,2]
[352934462,1739442653380,-500.0,0.0001533,2]
[352934463,1739442653390,-500.0,0.0001533,2]
[352934464,1739442653400,-961.52,0.0001533,2]
[352934465,1739442653409,-500.0,0.0001533,2]
[352934466,1739442653420,-500.0,0.0001533,2]
[352934467,1739442653430,-709.35,0.0001533,2]
[352934468,1739442653439,-500.0,0.0001533,2]
[352934469,1739442653448,-500.0,0.0001533,2]
[352934470,1739442653459,-195.34963572,0.0001533,2]
[352934471,1739442653548,-500.0,0.00014998,2]
[352934472,1739442653558,-500.0,0.00015181,2]
[352934473,1739442653567,-503.1,0.00015181,2]
[352934474,1739442653578,-151.0,0.00015317,2]
[352934475,1739442653588,-500.0,0.00015318,2]
[352934476,1739442653601,-151.0,0.00015328,2]
[352934477,1739442653612,-291.12618755,0.0001533,2]
[352934478,1739442653624,-500.0,0.0001533,2]
[352934479,1739442653633,-2107.82,0.0001533,2]
[352934480,1739442653645,-500.0,0.0001533,2]
[352934481,1739442653655,-1243.69,0.0001533,2]
[352934482,1739442653665,-2167.31,0.0001533,2]
[352934483,1739442653676,-1026.44,0.0001533,2]
[352934484,1739442653686,-500.0,0.0001533,2]
[352934485,1739442653697,-500.0,0.0001533,2]
[352934486,1739442653709,-2140.77,0.0001533,2]
[352934487,1739442653719,-1065.29,0.0001533,2]
[352934488,1739442653728,-678.52,0.0001533,2]
[352934489,1739442653737,-595.42,0.0001533,2]
[352934490,1739442653746,-500.0,0.0001533,2]
[352934491,1739442653757,-539.34,0.0001533,2]
[352934492,1739442653768,-500.0,0.0001533,2]
[352934493,1739442653780,-1121.16,0.0001533,2]
[352934494,1739442653789,-553.25,0.0001533,2]
[352934495,1739442653800,-1218.12,0.0001533,2]
[352934496,1739442653810,-500.0,0.0001533,2]
[352934497,1739442653819,-1317.9,0.0001533,2]
[352934498,1739442653830,-500.0,0.0001533,2]
[352934499,1739442653839,-500.0,0.0001533,2]
[352934500,1739442653849,-151.0,0.0001533,2]
[352934501,1739442653859,-151.0,0.0001533,2]
[352934502,1739442653869,-151.0,0.0001533,2]
[352934503,1739442653882,-150.0,0.00015331,2]
[352934504,1739442653891,-500.0,0.00015331,2]
[352934505,1739442653900,-150.0,0.00015332,2]
[352934506,1739442653909,-500.0,0.00015333,2]
[352934507,1739442653919,-150.0,0.00015339,2]
[352934508,1739442653929,-150.0,0.0001534,2]
[352934509,1739442653938,-150.0,0.00015341,2]
[352934510,1739442653948,-150.0,0.00015342,2]
[352934511,1739442653957,-200.0,0.00015346,2]
[352934512,1739442653967,-200.0,0.00015346,2]
[352934513,1739442653978,-150.0,0.00015346,2]
[352934514,1739442653987,-200.0,0.00015346,2]
[352934515,1739442653998,-150.0,0.0001535,2]
[352934516,1739442654007,-150.0,0.0001536,2]
[352934517,1739442654017,-150.0,0.00015361,2]
[352934518,1739442654026,-150.0,0.00015363,2]
[352934519,1739442654036,-150.0,0.00015363,2]
[352934520,1739442654045,-150.0,0.00015367,2]
[352934521,1739442654055,-150.0,0.00015369,2]
[352934522,1739442654064,-150.0,0.00015369,2]
[352934523,1739442654074,-150.0,0.00015372,2]
[352934524,1739442654084,-152.4713175,0.00015373,2]
[352934525,1739442654095,-677.14,0.00015373,2]
[352934526,1739442654104,-150.0,0.00015374,2]
[352934527,1739442654113,-150.0,0.00015375,2]
[352934528,1739442654122,-150.0,0.00015378,2]
[352934529,1739442654131,-150.0,0.00015383,2]
[352934530,1739442654143,-160.94,0.00015387,2]
[352934531,1739442654153,-150.0,0.00015387,2]
[352934532,1739442654164,-150.0,0.00015388,2]
[352934533,1739442654174,-150.0,0.00015388,2]
[352934534,1739442654184,-1802.5895442,0.00015389,2]
[352934535,1739442654194,-6619.1305609,0.00015389,2]
[352934536,1739442654205,-150.0,0.00015391,2]
[352934537,1739442654215,-150.0,0.00015397,2]
[352934538,1739442654225,-281.55794804,0.00015397,2]
[352934539,1739442654236,-150.0,0.00015397,2]
[352934540,1739442654246,-300.0,0.00015397,2]
[352934541,1739442654257,-301.2,0.00015397,2]
[352934542,1739442654267,-986.09,0.00015397,2]
[352934543,1739442654276,-986.09,0.00015397,2]
[352934544,1739442654486,-986.09,0.00015397,2]
[352934545,1739442654497,-439.94,0.00015397,2]
[352934546,1739442654508,-439.94,0.00015397,2]
[352934547,1739442654518,-775.49,0.00015397,2]
[352934548,1739442654527,-775.49,0.00015397,2]
[352934549,1739442654540,-775.49,0.00015397,2]
[352934550,1739442654551,-439.94,0.00015397,2]
[352934551,1739442654559,-633.6,0.00015397,2]
[352934552,1739442654571,-209.93,0.00015397,2]
[352934553,1739442654581,-150.0,0.00015397,2]
[352934554,1739442654591,-150.0,0.00015398,2]
[352934555,1739442654605,-500.0,0.00015399,2]
[352934556,1739442654615,-440.6,0.00015399,2]
[352934557,1739442654626,-500.0,0.00015399,2]
[352934558,1739442654635,-500.0,0.00015399,2]
[352934559,1739442654645,-500.0,0.00015399,2]
[352934560,1739442654655,-449.51,0.00015399,2]
[352934561,1739442654665,-146086.72384465,0.000154,20]
[352934562,1739442654680,-12621.07228834,0.000154,20]
[352934563,1739442654690,-134062.1172654,0.000154,5]
[352934564,1739442655346,-500.0,0.00014998,2]
[352934565,1739442655356,-103.17765157,0.00014998,2]
[352934566,1739442655454,-396.82234843,0.00014998,2]
[352934567,1739442655463,-433.3073421,0.00014998,2]
[352934568,1739442655480,-66.6926579,0.00014998,2]
[352934569,1739442655489,-150.0,0.00015141,2]
[352934570,1739442655500,-150.0,0.00015195,2]
[352934571,1739442655509,-150.0,0.00015197,2]
[352934572,1739442655519,-150.0,0.00015224,2]
[352934573,1739442655528,-150.0,0.00015226,2]
[352934574,1739442655538,-150.0,0.00015228,2]
[352934575,1739442655547,-150.0,0.00015237,2]
[352934576,1739442655557,-150.0,0.00015259,2]
[352934577,1739442655567,-150.0,0.00015266,2]
[352934578,1739442655576,-150.0,0.0001531,2]
[352934579,1739442655585,-151.0,0.00015317,2]
[352934580,1739442655595,-151.0,0.00015328,2]
[352934581,1739442655609,-151.0,0.0001533,2]
[352934582,1739442655619,-5629.51794783,0.000154,5]
[352934583,1739442732842,1300.0,0.00011972,2]
[352934584,1739442903879,841.0,0.00011972,30]
[352934585,1739442904226,841.0,0.000125,30]
[352934586,1739442904549,841.0,0.00013028,30]
[352934587,1739442904873,841.0,0.00013555,30]
[352934588,1739442905228,841.0,0.00014083,30]
[352934589,1739442905552,841.0,0.00014611,30]
[352934591,1739443073443,500.0,0.00014998,30]
[352934592,1739443129076,1300.0,0.00011972,2]
[352934593,1739443134447,500.0,0.00011972,2]
[352934594,1739443141714,210.83,0.00010137,2]
[352934595,1739443143449,1600.0,0.00011972,2]
[352934596,1739443204478,589.0,0.00011972,30]
[352934597,1739443204854,589.0,0.000125,30]
[352934598,1739443205188,589.0,0.00013028,30]
[352934599,1739443205525,589.0,0.00013555,30]
[352934600,1739443206159,589.0,0.00014083,30]
[352934601,1739443206576,589.0,0.00014611,30]
[352934602,1739443357298,4798.2036,8.256e-05,2]
[352934603,1739443408966,1300.0,0.00011972,2]
[352934604,1739443412083,500.0,0.00011972,2]
[352934605,1739443421480,1300.0,0.00011972,2]
[352934608,1739443503959,412.0,0.00011972,30]
[352934609,1739443504258,412.0,0.000125,30]
[352934610,1739443504618,412.0,0.00013028,30]
[352934611,1739443504917,412.0,0.00013555,30]
[352934612,1739443505223,412.0,0.00014083,30]
[352934613,1739443505575,412.0,0.00014611,30]
[352934614,1739443537093,-1061.83,0.0001227,2]
[352934615,1739443537114,-36.84017535,0.0001247,2]
[352934622,1739443630133,-113.15982465,0.0001247,2]
[352934623,1739443630155,-150.0,0.00013006,2]
[352934624,1739443630176,-510.26531074,0.00013249,2]
[352934625,1739443630196,-150.0,0.00013315,2]
[352934626,1739443630217,-300.0,0.00013341,2]
[352934627,1739443630238,-979.01994881,0.00013342,2]
[352934628,1739443632076,-622.95664853,0.00013342,2]
[352934629,1739443632097,-1300.0,0.00013342,2]
[352934630,1739443632120,-500.0,0.00013342,2]
[352934631,1739443632144,-1300.0,0.00013342,2]
[352934632,1739443632166,-150.0,0.00013497,2]
[352934633,1739443632186,-9522.95830946,0.0001363,2]
[352934636,1739443637360,-286.77968035,0.0001363,2]
[352934637,1739443652083,-1392.11116846,0.0001363,2]
[352934648,1739443746076,-500.0,0.00013068,2]
[352934649,1739443746099,-1100.0,0.00013068,2]
[352934650,1739443746121,-1100.0,0.00013068,2]
[352934651,1739443746143,-7066.14084173,0.0001363,2]
[352934652,1739443746166,-204.29,0.0001363,2]
[352934653,1739443746189,-150.0,0.00013654,2]
[352934654,1739443746211,-840.15,0.00013678,2]
[352934655,1739443746233,-1000.0,0.00013678,2]
[352934656,1739443746254,-502.18,0.00013824,2]
[352934657,1739443746276,-150.0,0.00013848,2]
[352934658,1739443746297,-1976.9,0.00013954,2]
[352934659,1739443746319,-300.0,0.00013964,2]
[352934660,1739443746341,-500.0,0.00014015,2]
[352934661,1739443746365,-1405.01,0.00014034,2]
[352934662,1739443746389,-300.0,0.000141,5]
[352934663,1739443746411,-700.0,0.000142,5]
[352934664,1739443746434,-300.44557198,0.00014222,2]
[352934665,1739443748100,-283.21442802,0.00014222,2]
[352934666,1739443748129,-1100.0,0.000143,5]
[352934667,1739443748153,-172.15,0.00014306,2]
[352934668,1739443748178,-1500.0,0.000144,5]
[352934669,1739443748201,-166.75,0.00014407,2]
[352934670,1739443748223,-292.1494672,0.00014434,2]
[352934671,1739443748244,-500.0,0.00014438,2]
[352934672,1739443748266,-1100.0,0.00014438,2]
[352934673,1739443748288,-1100.0,0.00014438,2]
[352934674,1739443748310,-439.73,0.00014438,2]
[352934675,1739443748331,-775.17,0.00014438,2]
[352934676,1739443748356,-1900.0,0.000145,5]
[352934677,1739443748381,-1000.0,0.0001452,3]
[352934678,1739443748402,-1061.83,0.00014534,2]
[352934679,1739443748425,-300.0,0.00014575,2]
[352934680,1739443748446,-150.0,0.00014575,2]
[352934681,1739443748467,-438.93,0.00014575,2]
[352934682,1739443748487,-150.0,0.00014575,2]
[352934683,1739443748508,-150.0,0.00014575,2]
[352934684,1739443748529,-438.93,0.00014575,2]
[352934685,1739443748550,-438.59,0.00014575,2]
[352934686,1739443748571,-150.0,0.00014575,2]
[352934687,1739443748593,-300.0,0.000146,5]
[352934688,1739443748615,-300.0,0.000147,5]
[352934689,1739443748640,-410.34563033,0.00014782,2]
[352934690,1739443748662,-110.25049426,0.000148,5]
[352934691,1739443804553,289.0,0.000148,30]
[352934707,1739443831828,-31.86440892,0.000148,5]
[352934708,1739443831863,-157.88509682,0.000148,5]
[352934709,1739443831873,-150.0,0.00014849,2]
[352934710,1739443831883,-2768.2011455,0.00014897,2]
[352934711,1739443831893,-327.54412032,0.00014898,2]
[352934712,1739443831904,-300.0,0.000149,5]
[352934713,1739443831915,-150.0,0.000149,2]
[352934714,1739443831925,-2768.20114547,0.00014942,2]
[352934715,1739443831935,-2768.20114547,0.00014987,2]
[352934716,1739443831945,-150.0,0.00014993,2]
[352934717,1739443831954,-300.0,0.00014995,2]
[352934718,1739443831964,-500.0,0.00014996,2]
[352934719,1739443831973,-453.19677378,0.00014996,2]
[352934720,1739443831983,-552.71,0.00014997,2]
[352934721,1739443831992,-500.0,0.00014997,2]
[352934722,1739443832002,-500.0,0.00014997,2]
[352934723,1739443832016,-577.23,0.00014997,2]
[352934724,1739443832026,-500.0,0.00014997,2]
[352934725,1739443832035,-500.0,0.00014997,2]
[352934726,1739443832045,-502.61826202,0.00014997,2]
[352934727,1739443832055,-1343.13,0.00014997,2]
[352934729,1739443832064,-502.58202405,0.00014997,2]
[352934731,1739443832074,-501.69224401,0.00014997,2]
[352934733,1739443832084,-768.2,0.00014997,2]
[352934735,1739443832093,-500.0,0.00014997,2]
[352934737,1739443832102,-447.79704954,0.00014997,2]
[352934739,1739443832112,-190.36253746,0.00014997,2]
[352934741,1739443832121,-500.0,0.00014997,2]
[352934743,1739443832131,-500.0,0.00014997,2]
[352934745,1739443832140,-500.0,0.00014997,2]
[352934747,1739443832149,-500.0,0.00014997,2]
[352934748,1739443832159,-689.27,0.00014997,2]
[352934750,1739443832168,-500.0,0.00014997,2]
[352934751,1739443832178,-500.0,0.00014997,2]
[352934752,1739443832187,-502.765203,0.00014997,2]
[352934753,1739443832197,-500.0,0.00014997,2]
[352934754,1739443832206,-890.07,0.00014997,2]
[352934755,1739443832216,-503.75885644,0.00014997,2]
[352934757,1739443832226,-500.0,0.00014997,2]
[352934759,1739443832235,-500.0,0.00014997,2]
[352934760,1739443832244,-500.0,0.00014997,2]
[352934762,1739443832253,-980.91,0.00014997,2]
[352934764,1739443832262,-500.0,0.00014997,2]
[352934766,1739443832271,-500.0,0.00014997,2]
[352934769,1739443832280,-618.24,0.00014997,2]
[352934771,1739443832289,-500.0,0.00014997,2]
[352934773,1739443832298,-500.0,0.00014997,2]
[352934775,1739443832307,-503.94229818,0.00014997,2]
[352934777,1739443832316,-500.0,0.00014997,2]
[352934779,1739443832326,-500.52715567,0.00014997,2]
[352934781,1739443832335,-500.98703277,0.00014997,2]
[352934784,1739443832344,-623.80963592,0.00014997,2]
[352934787,1739443832353,-500.0,0.00014997,2]
[352934790,1739443832363,-503.69994877,0.00014997,2]
[352934793,1739443832372,-500.0,0.00014997,2]
[352934796,1739443832381,-500.0,0.00014997,2]
[352934799,1739443832391,-500.0,0.00014997,2]
[352934802,1739443832400,-500.0,0.00014997,2]
[352934804,1739443832409,-500.0,0.00014997,2]
[352934806,1739443832419,-500.0,0.00014997,2]
[352934808,1739443832428,-500.0,0.00014997,2]
[352934810,1739443832437,-500.0,0.00014997,2]
[352934812,1739443832448,-500.0,0.00014997,2]
[352934814,1739443832457,-923.73,0.00014997,2]
[352934816,1739443832466,-2402.4,0.00014997,2]
[352934817,1739443832475,-500.0,0.00014997,2]
[352934819,1739443832484,-500.0,0.00014997,2]
[352934821,1739443832494,-20.7688742,0.00014997,2]
[352934829,1739443837444,-931.43,0.00014164,2]
[352934830,1739443837455,-480.45297225,0.00014997,2]
[352934831,1739443837465,-500.61945609,0.00014997,2]
[352934832,1739443837475,-342.19757157,0.00014997,2]
[352934833,1739443837497,-822.49017547,0.00014997,2]
[352934834,1739443837509,-1938.31225296,0.00014997,2]
[352934835,1739443837518,-62.62975404,0.00014997,2]
[352934836,1739443837531,-437.37024596,0.00014997,2]
[352934837,1739443837540,-500.0,0.00014997,2]
[352934838,1739443837550,-500.0,0.00014997,2]
[352934839,1739443837560,-153.052836,0.00014997,2]
[352934840,1739443837570,-500.0,0.00014997,2]
[352934841,1739443837581,-1840.28,0.00014997,2]
[352934842,1739443837592,-1029.44,0.00014997,2]
[352934843,1739443837603,-793.4,0.00014997,2]
[352934844,1739443837614,-500.0,0.00014997,2]
[352934845,1739443837624,-500.530116,0.00014997,2]
[352934846,1739443837635,-500.0,0.00014997,2]
[352934847,1739443837645,-500.0,0.00014997,2]
[352934848,1739443837655,-156.288087,0.00014997,2]
[352934849,1739443837667,-500.0,0.00014997,2]
[352934850,1739443837679,-500.0,0.00014997,2]
[352934851,1739443837690,-1601.66,0.00014997,2]
[352934852,1739443837700,-500.0,0.00014997,2]
[352934853,1739443837710,-1829.19,0.00014997,2]
[352934855,1739443837720,-500.0,0.00014997,2]
[352934857,1739443837729,-155.788179,0.00014997,2]
[352934859,1739443837739,-500.0,0.00014997,2]
[352934860,1739443837749,-500.0,0.00014997,2]
[352934861,1739443837759,-500.0,0.00014997,2]
[352934862,1739443837768,-501.77827582,0.00014997,2]
[352934864,1739443837778,-500.0,0.00014997,2]
[352934866,1739443837788,-500.0,0.00014997,2]
[352934867,1739443837798,-500.0,0.00014997,2]
[352934868,1739443837808,-500.0,0.00014997,2]
[352934869,1739443837819,-500.0,0.00014997,2]
[352934870,1739443837830,-500.0,0.00014997,2]
[352934871,1739443837840,-500.0,0.00014997,2]
[352934872,1739443837850,-567.82,0.00014997,2]
[352934873,1739443837859,-2525.85,0.00014997,2]
[352934874,1739443837868,-500.0,0.00014997,2]
[352934875,1739443837877,-500.0,0.00014997,2]
[352934876,1739443837886,-1033.7,0.00014997,2]
[352934878,1739443837895,-500.0,0.00014997,2]
[352934880,1739443837905,-195.149381,0.00014997,2]
[352934882,1739443837914,-501.75233911,0.00014997,2]
[352934883,1739443837923,-1719.66,0.00014997,2]
[352934884,1739443837932,-631.15,0.00014997,2]
[352934885,1739443837941,-500.0,0.00014997,2]
[352934886,1739443837951,-500.0,0.00014997,2]
[352934887,1739443837960,-504.13137642,0.00014997,2]
[352934888,1739443837969,-2344.51,0.00014997,2]
[352934889,1739443837978,-500.0,0.00014997,2]
[352934890,1739443837987,-500.0,0.00014997,2]
[352934891,1739443837996,-3492.18,0.00014997,2]
[352934892,1739443838005,-603.17185966,0.00014997,2]
[352934893,1739443838015,-500.0,0.00014997,2]
[352934894,1739443838026,-2735.52,0.00014997,2]
[352934895,1739443838035,-2250.62,0.00014997,2]
[352934896,1739443838044,-1065.92,0.00014997,2]
[352934897,1739443838053,-1401.66,0.00014997,2]
[352934898,1739443838063,-501.03812812,0.00014997,2]
[352934899,1739443838074,-2894.52,0.00014997,2]
[352934900,1739443838085,-1085.59996716,0.00014997,2]
[352934901,1739443838100,-725.05153259,0.00014997,2]
[352934902,1739443838113,-158.61850025,0.00014997,2]
[352934903,1739443838123,-500.0,0.00014997,2]
[352934904,1739443838135,-500.0,0.00014997,2]
[352934905,1739443838145,-501.6908489,0.00014997,2]
[352934906,1739443838155,-4378.5,0.00014997,2]
[352934907,1739443838165,-500.0,0.00014997,2]
[352934908,1739443838174,-500.0,0.00014997,2]
[352934909,1739443838183,-500.0,0.00014997,2]
[352934910,1739443838192,-502.14616378,0.00014997,2]
[352934911,1739443838202,-3061.22221242,0.00014997,2]
[352934912,1739443838213,-511.90603702,0.00014997,2]
[352934913,1739443838226,-274.56175056,0.00014997,2]
[352934914,1739443838235,-193.84221242,0.00014997,2]
[352934915,1739443838247,-2165.06778758,0.00014997,2]
[352934916,1739443838257,-503.8204107,0.00014997,2]
[352934917,1739443838267,-500.0,0.00014997,2]
[352934918,1739443838277,-3461.45103041,0.00014997,2]
[352934919,1739443838289,-567.08203043,0.00014997,2]
[352934920,1739443838302,-1507.57772365,0.00014997,2]
[352934921,1739443838327,-3056.57921551,0.00014997,2]
[352934922,1739443838336,-500.0,0.00014997,2]
[352934923,1739443838346,-500.0,0.00014997,2]
[352934924,1739443838354,-1829.84571772,0.00014997,2]
[352934925,1739443838839,-122.07446402,0.00014997,2]
[352934926,1739443838944,-1441.91981826,0.00014997,2]
[352934927,1739443838954,-500.0,0.00014997,2]
[352934928,1739443838963,-285.26257556,0.00014997,2]
[352934929,1739443838974,-214.73742444,0.00014997,2]
[352934930,1739443838984,-500.0,0.00014997,2]
[352934931,1739443838993,-3328.91,0.00014997,2]
[352934932,1739443839002,-500.68615643,0.00014997,2]
[352934933,1739443839014,-3381.22666111,0.00014997,2]
[352934934,1739443839026,-275.16333889,0.00014997,2]
[352934935,1739443839035,-500.0,0.00014997,2]
[352934936,1739443839045,-500.0,0.00014997,2]
[352934937,1739443839055,-500.0,0.00014997,2]
[352934938,1739443839065,-3496.08,0.00014997,2]
[352934939,1739443839074,-538.05,0.00014997,2]
[352934940,1739443839084,-501.88677955,0.00014997,2]
[352934941,1739443839096,-500.0,0.00014997,2]
[352934942,1739443839107,-2440.45,0.00014997,2]
[352934943,1739443839118,-2821.84728356,0.00014997,2]
[352934944,1739443839135,-1517.16271644,0.00014997,2]
[352934945,1739443839146,-1038.86782383,0.00014997,2]
[352934957,1739443839748,-1925.63217617,0.00014997,2]
[352934958,1739443839757,-500.0,0.00014997,2]
[352934959,1739443839767,-500.0,0.00014997,2]
[352934960,1739443839777,-1876.98,0.00014997,2]
[352934961,1739443839786,-502.49664044,0.00014997,2]
[352934962,1739443839796,-500.0,0.00014997,2]
[352934963,1739443839805,-7343.05,0.00014997,2]
[352934964,1739443839814,-1186.71,0.00014997,2]
[352934965,1739443839823,-4863.89,0.00014997,2]
[352934966,1739443839833,-500.0,0.00014997,2]
[352934967,1739443839842,-500.0,0.00014997,2]
[352934968,1739443839852,-500.0,0.00014997,2]
[352934969,1739443839861,-4805.51,0.00014997,2]
[352934970,1739443839871,-500.0,0.00014997,2]
[352934971,1739443839880,-500.0,0.00014997,2]
[352934972,1739443839889,-3115.47,0.00014997,2]
[352934973,1739443839898,-500.0,0.00014997,2]
[352934974,1739443839908,-500.0,0.00014997,2]
[352934975,1739443839917,-502.69466534,0.00014997,2]
[352934976,1739443839927,-500.0,0.00014997,2]
[352934977,1739443839936,-902.27,0.00014997,2]
[352934978,1739443839945,-548.39359317,0.00014997,2]
[352934979,1739443839956,-508.57914277,0.00014997,2]
[352934980,1739443839965,-2436.75,0.00014997,2]